bitfinex-derivatives/quotes_ETHF0:USTF0_20250528
["timestamp","ask_amount","ask_price","bid_price","bid_amount"]
[1748392538926,0.75438,2650.0,2649.8,5.8374]
[1748392539226,0.75438,2650.0,2649.9,0.75439]
[1748392539425,3.2078,2650.5,2649.8,8.2908]
[1748392539625,0.75428,2650.3,2650.2,0.7543]
[1748392540728,1.2754,2650.4,2649.8,4.4608]
[1748392540931,0.75434,2650.1,2650.0,0.75434]
[1748392541131,2.02973,2650.2,2650.0,0.75434]
[1748392541326,0.75434,2650.1,2650.0,0.75433]
[1748392541631,0.75434,2650.1,2650.0,2.06476]
[1748392542225,2.02973,2650.2,2650.1,0.75433]
[1748392542636,0.75433,2650.1,2650.0,5.89374]
[1748392542831,2.04483,2650.1,2650.0,5.89374]
[1748392543030,2.04483,2650.1,2650.0,2.06474]
[1748392543225,2.04483,2650.1,2650.0,5.89374]
[1748392545033,1.2905,2650.1,2650.0,5.89374]
[1748392545234,2.04483,2650.1,2650.0,5.1394]
[1748392545634,2.04483,2650.1,2650.0,5.89376]
[1748392545931,2.04483,2650.1,2650.0,3.829]
[1748392546432,0.75442,2649.9,2649.8,3.829]
[1748392546727,0.75442,2649.9,2649.8,4.58341]
[1748392546932,0.75442,2649.9,2649.8,3.829]
[1748392547133,2.02742,2649.9,2649.8,4.58341]
[1748392547629,2.02742,2649.9,2649.8,3.829]
[1748392547932,2.02742,2649.9,2649.8,4.58341]
[1748392549133,1.273,2649.9,2649.8,4.58341]
[1748392549334,2.02739,2649.9,2649.8,4.58341]
[1748392549935,1.39588,2650.0,2649.9,0.75439]
[1748392550131,1.39588,2650.0,2649.9,1.99329]
[1748392550634,2.62878,2650.0,2649.9,1.99329]
[1748392552734,2.62878,2650.0,2649.9,0.75439]
[1748392554829,0.75439,2649.9,2649.8,0.07339423]
[1748392555139,5.31509,2649.9,2649.8,0.07339423]
[1748392556638,5.31509,2649.9,2649.8,0.82780423]
[1748392557137,2.10729,2649.9,2649.8,0.82780423]
[1748392558242,5.31509,2649.9,2649.8,0.07339423]
[1748392558535,0.75434,2650.1,2649.8,0.07339423]
[1748392558741,3.41363,2650.1,2650.0,0.75433]
[1748392559339,0.75439,2649.9,2649.8,0.82778423]
[1748392562145,3.96219,2649.9,2649.8,0.07339423]
[1748392562342,8.96219,2649.9,2649.8,4.23e-06]
[1748392562545,10.18270514,2649.9,2649.8,4.23e-06]
[1748392563447,6.54690514,2649.9,2649.8,4.23e-06]
[1748392563950,6.54690514,2649.9,2649.8,0.75441423]
[1748392564246,6.54690514,2649.9,2649.8,4.23e-06]
[1748392565348,6.54789805,2649.9,2649.8,4.23e-06]
[1748392567748,6.54789805,2649.9,2649.8,0.75441423]
[1748392569342,6.54789805,2649.9,2649.8,4.23e-06]
[1748392569547,4.42976333,2649.9,2649.8,0.75441423]
[1748392569754,1.2509,2650.3,2650.2,0.7543]
[1748392569947,0.75423,2650.5,2650.4,0.75422]
[1748392570149,0.75424,2650.4,2650.3,2.06825]
[1748392570750,2.5477,2650.6,2650.4,0.75422]
[1748392570751,41.55423,2650.5,2650.4,0.75422]
[1748392571149,0.75423,2650.5,2650.4,0.75422]
[1748392571446,3.3019,2650.6,2650.5,0.75422]
[1748392571644,3.21345707,2650.7,2650.6,0.75419]
[1748392571850,3.21345707,2650.7,2650.6,2.06819]
[1748392572453,3.96761707,2650.7,2650.6,2.06819]
[1748392572644,3.96761707,2650.7,2650.6,19.56819]
[1748392575252,0.75981707,2650.7,2650.6,19.56819]
[1748392577260,3.96761707,2650.7,2650.6,1.314]
[1748392577556,0.75427,2650.4,2650.3,17.498]
[1748392577751,2.0603,2650.6,2650.3,20.63867]
[1748392577954,0.7542,2650.6,2650.5,0.75422]
[1748392578155,2.05063707,2650.7,2650.6,0.75419]
[1748392578756,0.75983707,2650.7,2650.6,0.75419]
[1748392579259,0.00565707,2650.7,2650.6,0.75419]
[1748392579558,0.75981707,2650.7,2650.6,0.75419]
[1748392579756,0.00565707,2650.7,2650.6,0.75419]
[1748392580162,0.75981707,2650.7,2650.6,0.75419]
[1748392581662,0.75419,2650.6,2650.5,1.255]
[1748392582165,0.75419,2650.6,2650.5,2.00921]
[1748392582460,0.75422,2650.5,2650.4,0.75424]
[1748392582662,0.75424,2650.4,2650.3,23.36315]
[1748392583962,0.75435,2650.1,2650.0,22.06633]
[1748392584165,0.75433,2650.2,2650.1,0.7543]
[1748392584358,2.73659,2650.3,2650.2,0.7543]
[1748392586360,1.9823,2650.3,2650.2,0.7543]
[1748392587067,2.73657,2650.3,2650.2,0.7543]
[1748392587260,0.7543,2650.2,2650.1,2.05122]
[1748392587460,2.1005,2650.2,2650.1,2.05122]
[1748392588064,2.1005,2650.2,2650.1,2.12461423]
[1748392588865,2.1005,2650.2,2650.1,0.07339423]
[1748392589058,0.75444,2649.8,2649.7,0.75442]
[1748392589363,0.75444,2649.7,2649.6,2.08535]
[1748392589559,2.74334,2649.7,2649.6,2.08535]
[1748392589773,2.74334,2649.7,2649.6,0.75445]
[1748392589967,0.7545,2649.6,2649.5,0.75449]
[1748392590269,42.861,2649.6,2649.5,0.75449]
[1748392591869,42.1065,2649.6,2649.5,0.75449]
[1748392592066,1.3065,2649.6,2649.5,0.75449]
[1748392593772,0.6824,2649.7,2649.6,0.75447]
[1748392594161,3.2078,2649.9,2649.7,0.75441]
[1748392594366,0.75441,2649.8,2649.7,2.04552]
[1748392594661,2.02331,2649.8,2649.7,2.04552]
[1748392594867,2.02331,2649.8,2649.7,1.2911]
[1748392595070,0.75444,2649.7,2649.6,0.07339423]
[1748392595275,1.2689,2649.8,2649.7,0.75444]
[1748392595469,1.2689,2649.8,2649.7,2.04554]
[1748392595970,2.02331,2649.8,2649.7,2.04554]
[1748392596171,3.8251,2649.9,2649.8,0.75441]
[1748392596482,3.8251,2649.9,2649.8,2.04551]
[1748392597072,4.57949,2649.9,2649.8,2.04551]
[1748392597869,3.8251,2649.9,2649.8,2.04551]
[1748392598575,4.57949,2649.9,2649.8,2.04551]
[1748392598869,3.8251,2649.9,2649.8,2.04551]
[1748392599971,3.2078,2649.9,2649.8,2.04551]
[1748392601278,2.02324,2650.1,2650.0,0.75436]
[1748392601670,1.2689,2650.1,2650.0,0.75436]
[1748392601871,1.39458,2650.3,2650.2,0.7543]
[1748392602070,0.6403,2650.3,2650.2,0.7543]
[1748392602575,1.39457,2650.3,2650.2,0.7543]
[1748392602774,2.68717,2650.3,2650.2,0.7543]
[1748392606577,0.75425,2650.4,2650.3,0.75424]
[1748392606875,5.1785,2650.5,2650.4,0.75424]
[1748392607576,3.2078,2650.5,2650.4,0.75424]
[1748392608474,1.97515707,2650.7,2650.6,0.75419]
[1748392608781,2.72931707,2650.7,2650.6,0.75419]
[1748392608971,1.97515707,2650.7,2650.6,0.75419]
[1748392609367,0.00565707,2650.7,2650.6,0.75419]
[1748392609579,0.00565707,2650.7,2650.6,1.41839]
[1748392610275,0.00565707,2650.7,2650.6,22.06219]
[1748392610674,1.31325707,2650.7,2650.6,22.06219]
[1748392612285,0.00565707,2650.7,2650.6,22.06219]
[1748392614174,0.00565707,2650.7,2650.6,0.75419]
[1748392614377,0.00565707,2650.7,2650.6,18.24019]
[1748392616181,0.75384,2651.9,2651.8,0.75383]
[1748392616479,0.75384,2651.9,2650.7,1.8854]
[1748392616480,0.75386,2651.8,2651.7,0.75385]
[1748392616872,2.01246,2651.8,2651.7,0.75385]
[1748392617079,2.01245,2651.8,2651.7,0.75385]
[1748392617485,1.2586,2651.8,2651.7,0.75385]
[1748392617782,0.00565707,2652.0,2651.9,0.75382]
[1748392618282,0.00565707,2652.0,2651.9,3.31832]
[1748392623282,0.00565707,2652.0,2651.6,1.88475]
[1748392623283,3.21345707,2652.0,2651.8,0.75383]
[1748392623477,2.5258,2651.9,2651.8,0.75383]
[1748392624184,3.27964,2651.9,2651.8,0.75383]
[1748392624480,0.75386,2651.8,2651.7,0.75386]
[1748392624682,1.304,2651.8,2651.7,0.75386]
[1748392624883,2.05785,2651.8,2651.7,0.75386]
[1748392625987,2.05785,2651.8,2651.2,1.88501]
[1748392625988,0.75402,2651.2,2651.1,3.812]
[1748392626178,0.75409,2651.0,2650.8,5.1745]
[1748392626481,1.304,2651.1,2650.7,3.2078]
[1748392626690,1.304,2650.9,2650.8,0.75413]
[1748392627978,0.75413,2650.8,2650.6,3.81765707]
[1748392628283,1.3218,2650.7,2650.6,4.57184707]
[1748392629591,1.3218,2650.7,2650.6,0.75984707]
[1748392631193,0.75405,2651.1,2650.7,1.88538]
[1748392631381,1.3451,2650.9,2650.8,0.75413]
[1748392631779,42.1451,2650.9,2650.8,0.75413]
[1748392633385,42.8992,2650.9,2650.8,0.75413]
[1748392633587,0.75416,2650.7,2650.6,0.75982707]
[1748392634689,0.75415,2650.8,2650.7,0.75414]
[1748392634892,2.07205,2650.8,2650.7,0.75414]
[1748392635191,0.75416,2650.7,2650.6,0.00565707]
[1748392635395,0.75438,2650.0,2649.9,0.75436]
[1748392635590,0.75435,2650.1,2650.0,0.75435]
[1748392635896,3.96211,2650.2,2650.1,0.75433]
[1748392636392,3.2078,2650.5,2650.4,0.75424]
[1748392636592,3.96204,2650.5,2650.4,0.75424]
[1748392636990,0.6772,2650.6,2650.5,0.75422]
[1748392637288,3.885,2650.6,2650.5,0.75422]
[1748392637494,4.63919,2650.6,2650.5,0.75422]
[1748392638082,0.00565707,2650.7,2650.2,1.88574]
[1748392638083,0.00565707,2650.7,2650.6,0.75419]
[1748392638291,0.00565707,2650.7,2650.6,3.96199]
[1748392640196,0.00565707,2650.7,2650.6,21.43999]
[1748392640399,0.00565707,2650.7,2650.6,3.96199]
[1748392640591,0.00565707,2650.7,2650.6,0.75419]
[1748392640895,0.65335707,2650.7,2650.6,3.96199]
[1748392641090,0.65335707,2650.7,2650.6,4.03538423]
[1748392641786,0.00565707,2650.7,2650.6,4.03538423]
[1748392641992,0.00565707,2650.7,2650.6,3.96199]
[1748392643102,0.00565707,2650.7,2650.6,4.03538423]
[1748392644197,0.00565707,2650.7,2650.6,3.96199]
[1748392647594,44.76177,2651.4,2650.6,3.2078]
[1748392647595,3.2078,2651.4,2650.6,3.2078]
[1748392647797,0.6653,2651.3,2650.7,3.25218]
[1748392647997,0.75406,2651.1,2651.0,0.75404]
[1748392648602,0.75416,2650.7,2650.6,3.2078]
[1748392648796,0.75424,2650.5,2650.4,0.75424]
[1748392649095,0.6653,2650.6,2650.5,0.75422]
[1748392649601,0.6653,2650.6,2650.3,3.2078]
[1748392649807,0.75427,2650.4,2650.3,0.75427]
[1748392651501,0.75433,2650.2,2650.1,0.75431]
[1748392651796,0.6767,2650.5,2650.0,3.15578]
[1748392652001,2.01835,2650.4,2650.3,0.75425]
[1748392653099,0.75431,2650.2,2650.1,0.7543]
[1748392653497,1.2641,2650.4,2650.0,1.8859]
[1748392653693,1.2641,2650.4,2650.3,0.75427]
[1748392654600,2.01834,2650.4,2650.3,0.75427]
[1748392655605,0.75427,2650.3,2650.2,0.7543]
[1748392655805,2.06907,2650.3,2650.2,0.7543]
[1748392656306,42.86907,2650.3,2650.2,0.7543]
[1748392656798,0.75436,2650.0,2649.9,5.21129707]
[1748392657003,0.75435,2650.1,2650.0,0.75434]
[1748392657195,44.00049,2650.3,2649.9,4.45695707]
[1748392657196,0.75436,2650.0,2649.9,3.21345707]
[1748392657392,2.70416,2650.0,2649.9,3.21345707]
[1748392659510,2.70416,2650.0,2649.9,3.96784707]
[1748392661503,2.70416,2650.0,2649.9,3.21345707]
[1748392661904,2.70416,2650.0,2649.9,0.00565707]
[1748392664105,0.75436,2650.1,2650.0,0.75436]
[1748392666108,0.75436,2650.0,2649.9,0.00565707]
[1748392666417,2.09546,2650.0,2649.9,0.76004707]
[1748392667314,42.6857,2650.3,2650.0,0.75436]
[1748392667315,0.75435,2650.1,2650.0,0.75436]
[1748392667508,0.75435,2650.1,2650.0,2.05946]
[1748392668513,2.09472,2650.2,2650.1,0.75433]
[1748392669109,0.75433,2650.1,2650.0,2.05943]
[1748392672921,0.75436,2650.0,2649.9,3.21345707]
[1748392673112,1.41316,2650.0,2649.9,3.21345707]
[1748392673715,1.41316,2650.0,2649.9,3.96784707]
[1748392676211,1.41316,2650.0,2649.9,3.21345707]
[1748392679416,1.41316,2650.0,2649.9,3.96784707]
[1748392680113,1.41316,2650.0,2649.9,3.21345707]
[1748392680912,1.41316,2650.0,2649.9,3.96784707]
[1748392681113,1.41316,2650.0,2649.9,0.76004707]
[1748392681314,0.75434,2650.1,2650.0,0.75436]
[1748392681617,0.75434,2650.1,2650.0,2.07046]
[1748392681816,2.01734,2650.1,2650.0,1.3161]
[1748392682316,0.75436,2650.0,2649.9,0.00565707]
[1748392682518,2.08246,2650.0,2649.9,0.00565707]
[1748392684518,2.08246,2650.0,2649.9,0.76004707]
[1748392684716,2.08246,2650.0,2649.9,0.8334413]
[1748392685116,0.75436,2650.0,2649.9,0.8334413]
[1748392685924,0.75435,2650.1,2650.0,0.7543]
[1748392686216,1.99219746,2650.1,2650.0,2.1066]
[1748392688023,1.9925573,2650.1,2650.0,2.1066]
[1748392688727,1.9925573,2650.1,2650.0,1.3523]
[1748392689222,1.9925573,2650.1,2649.9,0.76004707]
[1748392689223,0.75436,2650.0,2649.9,0.00565707]
[1748392689422,3.3147673,2650.0,2649.9,0.00565707]
[1748392691925,3.3147673,2650.0,2649.9,0.0790513]
[1748392692230,3.31500255,2650.0,2649.9,0.0790513]
[1748392692725,3.31500255,2650.0,2649.9,0.8334413]
[1748392692928,1.8858,2650.2,2650.1,0.7543]
[1748392692929,0.75434,2650.2,2650.1,0.7543]
[1748392694330,0.75433,2650.1,2650.0,2.04334]
[1748392695027,5.72282,2650.4,2650.3,0.75427]
[1748392695028,0.75428,2650.4,2650.3,0.75427]
[1748392695418,41.55428,2650.4,2650.3,0.75427]
[1748392695625,41.55428,2650.4,2650.3,2.03887]
[1748392696724,41.55428,2650.4,2650.3,2.71457]
[1748392696930,41.55428,2650.4,2650.3,3.36847]
[1748392699234,0.75421,2650.6,2650.3,2.6142]
[1748392699425,0.75421,2650.6,2650.5,3.2078]
[1748392699632,0.75421,2650.6,2650.5,3.96199]
[1748392699834,0.75421,2650.6,2650.5,4.5265]
[1748392700033,0.75421,2650.6,2650.3,1.3296]
[1748392700034,0.75424,2650.4,2650.3,1.3296]
[1748392700234,0.75427,2650.3,2650.2,22.75179]
[1748392700534,1.99307,2650.3,2650.2,22.75179]
[1748392700730,42.79307,2650.3,2650.2,4.5265]
[1748392701125,0.75436,2650.0,2649.9,0.00565707]
[1748392701935,1.40886,2650.0,2649.9,0.00565707]
[1748392702436,0.7545,2649.5,2649.4,3.2078]
[1748392703133,41.5545,2649.5,2649.4,3.96233]
[1748392703630,0.75453,2649.4,2649.3,2.09944]
[1748392703934,2.05323,2649.4,2649.3,2.09944]
[1748392704136,2.73163,2649.4,2649.3,2.09944]
[1748392704339,1.9771,2649.4,2649.3,5.30724]
[1748392704537,40.8,2649.5,2649.4,0.75453]
[1748392704735,40.8,2649.5,2649.4,2.05943]
[1748392704936,41.5545,2649.5,2649.4,1.3049]
[1748392705135,0.75456,2649.3,2649.2,18.23023707]
[1748392705435,42.0987,2649.5,2649.2,17.47565707]
[1748392705638,42.85321,2649.5,2649.4,0.75453]
[1748392705937,0.75456,2649.3,2649.2,2.06511707]
[1748392706238,0.75455,2649.4,2649.3,0.75455]
[1748392706437,2.05325,2649.4,2649.3,0.75455]
[1748392706739,0.75456,2649.3,2649.2,0.00565707]
[1748392706937,2.09596,2649.3,2649.2,0.00565707]
[1748392708536,2.09596,2649.3,2649.2,0.76024707]
[1748392709342,2.09596,2649.3,2649.2,0.00565707]
[1748392710043,2.09596,2649.3,2649.2,0.76024707]
[1748392710437,2.09596,2649.3,2649.2,0.00565707]
[1748392714045,2.09596,2649.3,2649.2,0.0790513]
[1748392715736,1.3414,2649.3,2649.2,0.8336413]
[1748392715946,41.55451,2649.5,2649.4,0.75453]
[1748392716245,42.88241,2649.5,2649.4,0.75453]
[1748392716451,0.75453,2649.4,2649.3,2.12144]
[1748392716744,2.08243,2649.4,2649.3,2.12144]
[1748392717646,0.75453,2649.4,2649.3,2.12144]
[1748392720446,2.09833,2649.4,2649.3,2.12144]
[1748392721438,0.75456,2649.3,2649.2,0.0790513]
[1748392721645,2.09836,2649.3,2649.2,0.0790513]
[1748392722047,5.30616,2649.3,2649.2,0.0790513]
[1748392723144,5.30616,2649.3,2649.2,0.00565707]
[1748392724147,2.09836,2649.3,2649.2,0.00565707]
[1748392724352,5.30616,2649.3,2649.2,0.00565707]
[1748392724843,6.53772233,2649.3,2649.2,0.00565707]
[1748392726053,6.53785355,2649.3,2649.2,0.00565707]
[1748392726248,0.7547,2648.9,2648.7,3.2078]
[1748392726444,0.7547,2648.9,2648.8,0.75469]
[1748392726847,0.7547,2648.9,2648.8,2.09749]
[1748392727044,1.37506,2649.0,2648.9,0.75467]
[1748392727245,0.666,2649.2,2649.1,0.75461]
[1748392727246,0.75459,2649.2,2649.1,0.75461]
[1748392727454,0.75459,2649.3,2649.2,0.75455]
[1748392728152,0.75459,2649.2,2649.1,2.09739]
[1748392728653,0.75459,2649.2,2649.1,0.75459]
[1748392734553,0.75458,2649.3,2649.2,0.75456]
[1748392737065,0.75455,2649.4,2649.3,0.75453]
[1748392737268,0.75455,2649.4,2649.3,3.32673]
[1748392740777,0.75455,2649.4,2649.3,6.53453]
[1748392741871,0.75455,2649.4,2649.3,5.89633]
[1748392742075,0.75455,2649.4,2649.3,2.68853]
[1748392743572,1.8864,2649.3,2649.0,3.8831]
[1748392743778,0.75459,2649.2,2649.1,2.0727]
[1748392743978,1.88664,2649.0,2648.7,3.21345707]
[1748392744180,0.7547,2648.8,2648.7,3.21345707]
[1748392744974,0.30443878,2648.8,2648.3,3.2078]
[1748392745171,0.30443878,2648.8,2648.1,0.6328]
[1748392745172,0.75487,2648.2,2648.1,1.3181]
[1748392745679,41.55487,2648.2,2648.1,2.073]
[1748392746168,42.89987,2648.2,2648.1,2.073]
[1748392746872,0.75493,2648.0,2647.9,3.21345707]
[1748392747272,0.75493,2648.0,2647.9,0.00565707]
[1748392747777,0.75493,2648.0,2647.9,0.0790513]
[1748392747978,2.06913,2648.0,2647.9,0.0790513]
[1748392748578,2.06913,2648.0,2647.9,0.00565707]
[1748392749181,0.75492,2648.1,2648.0,0.75491]
[1748392749683,0.75493,2648.0,2647.9,0.00565707]
[1748392753378,2.08063,2648.0,2647.9,0.00565707]
[1748392754583,0.75493,2648.0,2647.9,0.00565707]
[1748392754880,2.08063,2648.0,2647.9,0.00565707]
[1748392761491,7.08063,2648.0,2647.9,7.07e-06]
[1748392761996,0.75513,2647.3,2647.2,3.2078]
[1748392762688,0.75513,2647.3,2647.2,3.96295]
[1748392762895,2.10203,2647.3,2647.2,3.96295]
[1748392763993,0.75521,2647.0,2646.9,3.2078]
[1748392764186,41.55521,2647.0,2646.9,3.2078]
[1748392764391,0.75533,2646.6,2646.5,5.29674]
[1748392764689,0.75531,2646.7,2646.6,0.7553]
[1748392765186,0.75565,2645.5,2645.0,23.15641]
[1748392765484,0.7557,2645.3,2645.2,0.6637]
[1748392765694,0.75573,2645.2,2645.1,4.4736]
[1748392765886,44.0078,2645.3,2645.1,3.797]
[1748392766090,44.76351,2645.3,2645.2,0.75573]
[1748392766292,44.0078,2645.3,2645.2,0.75573]
[1748392767092,3.2078,2645.3,2645.2,0.75573]
[1748392769198,3.2078,2645.3,2645.2,2.01293]
[1748392769594,3.2078,2645.3,2645.2,7.01293]
[1748392769796,0.00566786,2645.5,2645.4,0.75567]
[1748392770098,3.2078,2645.8,2645.7,0.75558]
[1748392773300,0.00566786,2646.0,2645.9,0.75553]
[1748392773998,0.00566786,2646.0,2645.9,2.05043]
[1748392775006,0.00566786,2646.0,2645.9,2.12382423]
[1748392776099,0.00566786,2646.0,2645.9,19.60282423]
[1748392778597,0.76116786,2646.0,2645.9,2.12382423]
[1748392778798,0.76116786,2646.0,2645.9,0.82892423]
[1748392780095,0.76116786,2646.0,2645.9,0.07339423]
[1748392784509,0.00566786,2646.0,2645.9,0.82892423]
[1748392784703,0.76116786,2646.0,2645.9,0.82892423]
[1748392785412,0.76116786,2646.0,2645.9,2.16972423]
[1748392787616,0.00566786,2646.0,2645.9,2.16972423]
[1748392790316,0.76116786,2646.0,2645.9,2.16972423]
[1748392790517,0.00566786,2646.0,2645.9,2.16972423]
[1748392790815,0.76116786,2646.0,2645.9,2.16972423]
[1748392792708,0.00566786,2646.0,2645.9,2.16972423]
[1748392792914,0.76116786,2646.0,2645.9,2.16972423]
[1748392793418,0.00566786,2646.0,2645.9,2.16972423]
[1748392793717,0.76116786,2646.0,2645.9,2.16972423]
[1748392793917,2.01815496,2646.0,2645.9,2.16972423]
[1748392794218,3.30725496,2646.0,2645.9,2.16972423]
[1748392794422,3.30715109,2646.0,2645.9,0.07339423]
[1748392795107,3.99045109,2646.0,2645.9,0.07339423]
[1748392795311,0.75561,2645.6,2645.5,0.00566786]
[1748392795515,5.22070184,2645.6,2645.5,0.00566786]
[1748392795921,5.22054341,2645.6,2645.5,0.00566786]
[1748392796409,5.86704341,2645.6,2645.5,0.00566786]
[1748392796817,10.86704341,2645.6,2645.5,7.86e-06]
[1748392797417,51.66704341,2645.6,2645.5,7.86e-06]
[1748392798414,55.46604341,2645.6,2645.5,7.86e-06]
[1748392799417,55.46604341,2645.6,2644.2,0.756]
[1748392799418,1.88968,2644.7,2644.2,0.756]
[1748392799613,3.2078,2644.3,2644.2,0.75601]
[1748392799813,3.96378,2644.3,2644.0,3.799]
[1748392800015,1.3116,2644.2,2644.1,0.75604]
[1748392800617,3.2078,2644.3,2644.2,0.75601]
[1748392800815,0.00566786,2644.4,2644.3,0.75598]
[1748392801016,1.28786786,2644.4,2644.3,0.75598]
[1748392801221,0.00566786,2644.4,2644.3,0.75598]
[1748392801432,3.21346786,2644.4,2644.3,4.55498]
[1748392801724,0.00566786,2644.4,2644.3,4.55498]
[1748392801921,0.00566786,2644.4,2644.3,9.55498]
[1748392803215,3.2078,2645.0,2644.3,8.799]
[1748392803418,3.2078,2645.3,2645.2,0.75573]
[1748392803625,3.2078,2645.3,2645.2,4.55573]
[1748392804118,5.2954,2645.3,2645.2,3.8]
[1748392804320,0.75575,2645.1,2645.0,1.90816786]
[1748392804524,0.75574,2645.2,2645.1,0.75574]
[1748392804722,1.3319,2645.2,2645.1,0.75574]
[1748392805629,0.75575,2645.1,2645.0,1.90816786]
[1748392805822,0.75575,2645.1,2645.0,5.70816786]
[1748392806630,2.08764,2645.2,2645.1,0.75575]
[1748392806929,1.3319,2645.2,2645.1,0.75575]
[1748392807927,0.00566786,2645.5,2645.4,0.75567]
[1748392808124,0.00566786,2645.5,2645.4,4.55567]
[1748392808327,0.00566786,2645.5,2645.4,10.92067]
[1748392808828,3.2078,2645.9,2645.8,0.75555]
[1748392809127,3.2078,2645.9,2645.8,22.12755]
[1748392809330,0.75545,2646.2,2646.1,0.75547]
[1748392809627,0.75545,2646.2,2645.8,21.372]
[1748392809628,0.75549,2646.1,2646.0,0.75549]
[1748392809930,0.75549,2646.1,2646.0,2.08879]
[1748392810430,2.04955,2646.2,2646.1,0.75547]
[1748392812232,1.2941,2646.2,2645.7,0.6267]
[1748392812532,0.75552,2646.0,2645.9,0.75551]
[1748392812722,0.75553,2645.9,2645.8,1.3333]
[1748392812924,0.75553,2645.9,2645.8,5.1323]
[1748392813224,0.75553,2645.9,2645.8,5.88785]
[1748392814133,3.2078,2646.0,2645.5,0.6537]
[1748392814429,0.7557,2645.3,2645.2,3.87239423]
[1748392814733,44.7635,2645.3,2645.2,3.87239423]
[1748392815031,44.7635,2645.3,2645.2,4.62812423]
[1748392816833,44.7635,2645.3,2645.2,3.87239423]
[1748392818532,44.7635,2645.3,2645.2,4.62812423]
[1748392819032,44.7635,2645.3,2645.2,3.87239423]
[1748392819233,44.75539049,2645.3,2645.2,4.62812423]
[1748392820141,44.75539049,2645.3,2645.2,22.18112423]
[1748392821035,44.0078,2645.3,2645.2,22.18112423]
[1748392821235,44.7635,2645.3,2645.2,22.18112423]
[1748392821433,45.9998,2645.3,2645.2,22.18112423]
[1748392822032,45.9998,2645.3,2645.2,0.82912423]
[1748392822240,45.9998,2645.3,2645.2,18.37211423]
[1748392823433,44.0078,2645.3,2645.2,18.37211423]
[1748392823636,3.2078,2645.3,2645.2,19.68071423]
[1748392823933,3.2078,2645.3,2645.2,23.49471423]
[1748392826034,3.2078,2645.6,2645.3,0.7557]
[1748392826235,5.28382,2645.6,2645.5,0.75564]
[1748392828148,0.75564,2645.5,2645.4,2.11244]
[1748392828344,2.12574,2645.5,2645.4,2.11244]
[1748392828845,3.2078,2645.6,2645.5,0.75564]
[1748392829143,3.2078,2645.6,2645.5,1.99644]
[1748392829347,3.41522,2646.0,2645.9,0.75553]
[1748392829550,3.41522,2646.0,2645.9,22.13753]
[1748392831645,2.6597,2646.0,2645.9,22.13753]
[1748392832651,3.4152,2646.0,2645.9,22.13753]
[1748392833148,4.54848,2646.0,2645.2,3.28119423]
[1748392833448,0.7557,2645.4,2645.3,3.841]
[1748392833955,2.6402,2645.4,2645.3,4.5967]
[1748392834149,3.2905,2645.4,2645.3,4.5967]
[1748392834743,2.5348,2645.4,2645.3,4.5967]
[1748392836056,2.5348,2645.4,2645.3,4.67009423]
[1748392836555,1.2363,2645.4,2645.3,4.67009423]
[1748392837952,3.2078,2645.5,2645.4,0.75567]
[1748392838253,3.2078,2645.5,2645.4,2.06127]
[1748392838458,4.461,2645.5,2645.4,2.06127]
[1748392840456,3.2078,2645.9,2645.6,1.88903]
[1748392840654,3.96334,2645.9,2645.8,0.75555]
[1748392841059,3.2078,2645.9,2645.8,0.75555]
[1748392841360,3.96333,2645.9,2645.8,0.75555]
[1748392842063,3.2078,2645.9,2645.8,0.75555]
[1748392843662,3.96333,2645.9,2645.8,0.75555]
[1748392844456,0.75553,2645.9,2645.8,0.75555]
[1748392845153,2.01321,2646.0,2645.9,0.75553]
[1748392845361,1.2577,2646.0,2645.9,0.75553]
[1748392845656,2.0132,2646.0,2645.9,0.75553]
[1748392848967,0.7556,2645.8,2645.7,18.25058]
[1748392849160,0.7556,2645.8,2645.7,22.09158]
[1748392849563,0.75555,2645.9,2645.8,0.75553]
[1748392850466,0.75555,2645.9,2645.8,4.59653]
[1748392850666,2.01322,2646.0,2645.9,0.75552]
[1748392851166,2.01322,2646.0,2645.9,0.82891423]
[1748392852565,1.2577,2646.0,2645.9,0.82891423]
[1748392853861,1.2577,2646.0,2645.9,2.75371423]
[1748392854273,3.96889786,2646.3,2646.0,1.88871]
[1748392854472,3.21346786,2646.3,2646.2,0.75544]
[1748392854667,3.96887786,2646.3,2646.2,4.59544]
[1748392857475,0.7555,2646.0,2645.9,0.07339423]
[1748392857769,3.9633,2646.0,2645.9,3.87439423]
[1748392858868,3.9633,2646.0,2645.9,4.62991423]
[1748392860773,3.9633,2646.0,2645.9,3.87439423]
[1748392861070,1.88893,2645.8,2645.6,3.801]
[1748392861277,3.96338,2645.7,2645.6,3.801]
[1748392861464,5.31648,2645.7,2645.6,3.801]
[1748392861661,46.11648,2645.7,2645.6,4.55661]
[1748392862065,5.31648,2645.7,2645.6,4.55661]
[1748392862276,4.5609,2645.7,2645.6,4.55661]
[1748392862976,1.3531,2645.7,2645.6,4.55661]
[1748392864469,0.00566786,2646.3,2645.6,4.55661]
[1748392864470,0.76109786,2646.3,2646.2,0.75544]
[1748392864775,0.00566786,2646.3,2646.2,4.55644]
[1748392864966,3.2078,2646.7,2646.6,0.75533]
[1748392865274,3.2078,2646.7,2646.6,4.55633]
[1748392865779,0.6308,2647.0,2646.9,0.75524]
[1748392865977,0.6308,2647.0,2646.9,18.25724]
[1748392866980,1.9695,2647.0,2646.9,18.25724]
[1748392869874,1.3387,2647.0,2646.9,18.25724]
[1748392870378,0.00566786,2647.2,2647.1,0.75518]
[1748392870574,0.00566786,2647.2,2647.1,4.55618]
[1748392870877,0.00566786,2647.2,2647.1,22.03818]
[1748392872479,0.00566786,2647.2,2647.1,3.8]
[1748392872480,0.76081786,2647.2,2647.1,3.8]
[1748392872677,0.76081786,2647.2,2647.1,4.55518]
[1748392872874,0.00566786,2647.2,2647.1,4.55518]